[Event "Mitropa Cup Women 2019"]
[Site "Radenci"]
[Date "2019.06.01"]
[Round "6.11"]
[White "Sankova, Stella"]
[Black "Choisy, Mathilde"]
[Result "1-0"]
[ECO "C11"]
[WhiteElo "2013"]
[BlackElo "2113"]
[Annotator "ChessBase"]
[PlyCount "73"]
[EventDate "2019.05.27"]
[EventType "team-tourn"]
[EventCountry "SLO"]
[SourceTitle "playchess.com"]
[Source "ChessBase"]
[SourceQuality "1"]
[WhiteTeam "Slovakia"]
[BlackTeam "France"]
[WhiteTeamCountry "SVK"]
[BlackTeamCountry "FRA"]
[TimeControl "40/5400+30:1800+30"]

1. e4 {[%emt 0:00:00]} e6 {[%emt 0:00:00]} 2. d4 {[%emt 0:00:00]} d5 {[%emt 0:00:00]} 3. Nc3 {[%emt 0:00:00]} Nf6 {[%emt 0:00:00]} 4. e5 {[%emt 0:00:00]} Nfd7 {[%emt 0:00:01]} 5. f4 {[%emt 0:00:00]} c5 {[%emt 0:00:05]} 6. Nf3 {[%emt 0:00:00]} Be7 {[%emt 0:00:10]} 7. Be3 {[%emt 0:00:58]} b6 {[%emt 0:02:38]} 8. Qd2 {[%emt 0:20:11]} O-O {[%emt 0:00:16]} 9. O-O-O {[%emt 0:00:14]} Nc6 {[%emt 0:03:06]} 10. Qf2 {[%emt 0:13:07]} c4 {[%emt 0:12:24]} 11. f5 {[%emt 0:04:33]} b5 {[%emt 0:06:05]} 12. f6 {[%emt 0:03:47]} gxf6 {[%emt 0:00:35]} 13. Bh6 {[%emt 0:01:12]} Kh8 {[%emt 0:00:05]} 14. exf6 {[%emt 0:03:33]} Bxf6 {[%emt 0:09:29]} 15. Bxf8 {[%emt 0:00:04]} Qxf8 {[%emt 0:06:41]} 16. g4 {[%emt 0:07:37]} b4 {[%emt 0:01:46]} 17. Ne2 {[%emt 0:02:45]} Qd8 {[%emt 0:09:06]} 18. Kb1 {[%emt 0:05:29]} Qa5 {[%emt 0:16:05]} 19. Nc1 {[%emt 0:04:52]} Rb8 {[%emt 0:06:44]} 20. h4 {[%emt 0:05:40]} b3 {[%emt 0:07:05]} 21. axb3 {[%emt 0:02:30]} c3 {[%emt 0:02:57]} 22. bxc3 {[%emt 0:08:36]} Nc5 {[%emt 0:00:22]} 23. Ng5 {[%emt 0:04:07]} Bxg5 {[%emt 0:03:09]} 24. dxc5 {[%emt 0:04:48]} Bxc1 {[%emt 0:07:16]} 25. Rxc1 {[%emt 0:02:27]} Qxc3 {[%emt 0:00:09]} 26. Rh3 {[%emt 0:01:16]} Qg7 {[%emt 0:00:04]} 27. g5 {[%emt 0:02:50]} e5 {[%emt 0:00:51]} 28. Rf3 {[%emt 0:00:12]} Be6 {[%emt 0:00:04]} 29. Bh3 {[%emt 0:01:33]} e4 {[%emt 0:00:59]} 30. Rg3 {[%emt 0:00:39]} Bxh3 {[%emt 0:02:20]} 31. Rxh3 {[%emt 0:00:01]} Ne5 {[%emt 0:00:49]} 32. Qd4 {[%emt 0:00:32]} Nc4 {[%emt 0:01:59]} 33. Qxg7+ {[%emt 0:00:08]} Kxg7 {[%emt 0:00:03]} 34. Rd1 {[%emt 0:00:46]} e3 {[%emt 0:00:09]} 35. Kc1 {[%emt 0:01:28]} Ne5 {[%emt 0:03:03]} 36. Rxe3 {[%emt 0:00:10]} Ng4 {[%emt 0:00:27]} 37. Rg3 {[%emt 0:00:28]} 1-0

[Event "Mitropa Cup Women 2019"]
[Site "Radenci"]
[Date "2019.06.01"]
[Round "6.12"]
[White "Djidjeli, Sarah"]
[Black "Milcova, Zuzana"]
[Result "1-0"]
[ECO "B17"]
[WhiteElo "2012"]
[BlackElo "2093"]
[Annotator "NA"]
[PlyCount "117"]
[EventDate "2019.05.27"]
[EventType "team-tourn"]
[EventCountry "SLO"]
[SourceTitle "playchess.com"]
[Source "ChessBase"]
[SourceQuality "1"]
[WhiteTeam "France"]
[BlackTeam "Slovakia"]
[WhiteTeamCountry "FRA"]
[BlackTeamCountry "SVK"]
[TimeControl "40/5400+30:1800+30"]

1. e4 {[%emt 0:00:00]} c6 {[%emt 0:00:00]} 2. d4 {[%emt 0:00:00]} d5 {[%emt 0:00:05]} 3. Nc3 {[%emt 0:00:00]} dxe4 {[%emt 0:00:03]} 4. Nxe4 {[%emt 0:00:00]} Nd7 {[%emt 0:00:04]} 5. Ng5 {[%emt 0:00:07]} e6 {[%emt 0:00:15]} 6. Bd3 {[%emt 0:00:29]} Ngf6 {[%emt 0:00:19]} 7. N1f3 {[%emt 0:00:25]} Bd6 {[%emt 0:02:40]} 8. Qe2 {[%emt 0:00:24]} h6 {[%emt 0:01:12]} 9. Ne4 {[%emt 0:00:18]} Nxe4 {[%emt 0:00:24]} 10. Qxe4 {[%emt 0:00:06]} Nf6 {[%emt 0:00:50]} 11. Qe2 {[%emt 0:00:35]} b6 {[%emt 0:03:11]} 12. Bd2 {[%emt 0:02:09] B17: Caro-Kann: Modern Line (4...Nd7)} (12. O-O O-O 13. Ne5 Qc7 14. Bf4 Bb7 15. Rad1 Rad8 16. Bg3 c5 17. dxc5 Qxc5 18. Ng4 Nh5 19. Bxd6 Rxd6 {1-0 (48) Smirnov,A (2549)-Le,Q (2715) chess.com INT 2018}) 12... Bb7 {[%emt 0:02:00]} 13. O-O-O {[%emt 0:03:39]} Qe7 {[%emt 0:03:15]} 14. c4 {[%emt 0:05:46]} O-O-O {[%emt 0:24:01]} 15. Kb1 {[%emt 0:02:05]} Nd7 $146 {[%emt 0:15:40]} ({Predecessor:} 15... Kb8 16. a3 c5 17. Bc3 Rhe8 18. dxc5 Bxc5 19. Ne5 Ka8 {1-0 (40) Chapman,M (2075)-Allen,A (2255) Suncoast 1999}) 16. Rhe1 {[%emt 0:11:38]} Rhe8 {[%emt 0:01:20]} 17. Bc3 {[%emt 0:01:28]} Bb4 {[%emt 0:07:10]} 18. Rc1 {[%emt 0:07:37]} Bxc3 {[%emt 0:05:11]} 19. Rxc3 {[%emt 0:00:20]} c5 {[%emt 0:00:57]} 20. Be4 {[%emt 0:05:40]} Qd6 {[%emt 0:21:10]} 21. Bxb7+ {[%emt 0:09:42]} Kxb7 {[%emt 0:00:01]} 22. dxc5 {[%emt 0:00:10]} Qxc5 {[%emt 0:03:39]} 23. Qe4+ {[%emt 0:01:28]} Qc6 {[%emt 0:00:37]} 24. Qg4 {[%emt 0:00:33]} Rg8 {[%emt 0:02:44]} 25. Nd4 {[%emt 0:01:26]} Qc5 {[%emt 0:02:40]} 26. Qf3+ {[%emt 0:37:26]} Kc7 {[%emt 0:00:15]} 27. Ra3 {[%emt 0:05:04]} a5 {[%emt 0:00:48]} 28. Nb5+ {[%emt 0:01:12]} Kb8 {[%emt 0:00:07]} 29. Qf4+ {[%emt 0:01:06]} e5 {[%emt 0:01:21]} 30. Qxf7 {[%emt 0:01:18]} Rgf8 {[%emt 0:00:10]} 31. Qxg7 {[%emt 0:01:34]} Qb4 {[%emt 0:00:27]} 32. Rd1 {[%emt 0:01:15]} Rxf2 {[%emt 0:00:19]} 33. Rb3 {[%emt 0:00:12]} Qxc4 {[%emt 0:00:12]} 34. Nc3 {[%emt 0:01:06]} Rf7 {[%emt 0:01:22]} 35. Qxh6 {[%emt 0:00:28]} Rc8 {[%emt 0:00:59]} 36. Qd6+ {[%emt 0:00:32]} Qc7 {[%emt 0:00:43]} 37. Qxc7+ {[%emt 0:00:34]} Rxc7 {[%emt 0:00:33]} 38. Nd5 {[%emt 0:00:29]} Rc6 {[%emt 0:00:15]} 39. a3 {[%emt 0:00:33]} Ka7 {[%emt 0:00:33]} 40. Re3 {[%emt 0:00:00]} Rg6 {[%emt 0:00:00]} 41. Rd2 {[%emt 0:01:57]} Rf1+ {[%emt 0:22:18]} 42. Kc2 {[%emt 0:01:42]} Rg1 {[%emt 0:02:02]} 43. g3 {[%emt 0:03:05]} Re6 $18 {[%emt 0:03:34]} 44. Nc3 {[%emt 0:02:11]} Nc5 {[%emt 0:01:51]} 45. b4 {[%emt 0:04:29]} axb4 {[%emt 0:01:53]} 46. axb4 {[%emt 0:00:05]} Na6 {[%emt 0:00:09]} 47. Rd7+ {[%emt 0:01:03]} Kb8 {[%emt 0:00:05]} 48. Kb3 {[%emt 0:00:19]} Rf1 {[%emt 0:02:21]} 49. h4 {[%emt 0:02:06]} Nc7 {[%emt 0:01:01]} 50. h5 {[%emt 0:02:26]} Rc6 {[%emt 0:00:23]} 51. Re7 {[%emt 0:01:58]} Rc1 {[%emt 0:01:44]} 52. R7xe5 {[%emt 0:00:33]} Kb7 {[%emt 0:00:18]} 53. g4 {[%emt 0:01:05]} b5 {[%emt 0:00:40]} 54. g5 {[%emt 0:02:41]} Ra1 {[%emt 0:00:29]} 55. Re1 {[%emt 0:01:17]} Ra8 {[%emt 0:00:32]} 56. g6 {[%emt 0:01:44]} Rc8 {[%emt 0:00:28]} 57. Nxb5 {[%emt 0:01:27]} Nxb5 {[%emt 0:00:10]} 58. Rxb5+ {[%emt 0:00:04]} Ka6 {[%emt 0:00:08]} 59. Rc5 {[%emt 0:00:44]} 1-0

[Event "Mitropa Cup Women 2019"]
[Site "Radenci"]
[Date "2019.06.01"]
[Round "6.13"]
[White "Pychova, Nela"]
[Black "Medic, Mirjana"]
[Result "1/2-1/2"]
[ECO "E17"]
[WhiteElo "2174"]
[BlackElo "2253"]
[Annotator "ChessBase"]
[PlyCount "124"]
[EventDate "2019.05.27"]
[EventType "team-tourn"]
[EventCountry "SLO"]
[SourceTitle "playchess.com"]
[Source "ChessBase"]
[SourceQuality "1"]
[WhiteTeam "Czech Republic"]
[BlackTeam "Croatia"]
[WhiteTeamCountry "CZE"]
[BlackTeamCountry "CRO"]
[TimeControl "40/5400+30:1800+30"]

1. Nf3 {[%emt 0:00:00]} Nf6 {[%emt 0:00:32]} 2. g3 {[%emt 0:00:00]} b6 {[%emt 0:00:41]} 3. Bg2 {[%emt 0:00:17]} Bb7 {[%emt 0:00:06]} 4. c4 {[%emt 0:11:39]} e6 {[%emt 0:00:12]} 5. b3 {[%emt 0:03:23]} Be7 {[%emt 0:01:02]} 6. Bb2 {[%emt 0:00:11]} O-O {[%emt 0:00:39]} 7. O-O {[%emt 0:00:15]} c5 {[%emt 0:06:37]} 8. Nc3 {[%emt 0:05:16]} d5 {[%emt 0:08:59]} 9. cxd5 {[%emt 0:00:52]} exd5 {[%emt 0:03:50]} 10. d4 {[%emt 0:00:13]} Nbd7 {[%emt 0:07:49]} 11. dxc5 {[%emt 0:07:35]} Nxc5 {[%emt 0:02:07]} 12. Nd4 {[%emt 0:01:18]} Qd7 {[%emt 0:04:26]} 13. Rc1 {[%emt 0:05:07]} Rfd8 {[%emt 0:04:16]} 14. Qc2 {[%emt 0:03:40]} Rac8 {[%emt 0:01:04]} 15. Qf5 {[%emt 0:03:38]} Ne6 {[%emt 0:03:28]} 16. Nxe6 {[%emt 0:10:47]} fxe6 {[%emt 0:00:02]} 17. Qe5 {[%emt 0:00:28]} Bd6 {[%emt 0:01:07]} 18. Qg5 {[%emt 0:00:19]} e5 {[%emt 0:04:50]} 19. Rfd1 {[%emt 0:07:02]} d4 {[%emt 0:03:50]} 20. Bxb7 {[%emt 0:03:01]} Qxb7 {[%emt 0:00:02]} 21. Nb5 {[%emt 0:00:57]} Rxc1 {[%emt 0:01:47]} 22. Rxc1 {[%emt 0:01:59]} Bb8 {[%emt 0:01:39]} 23. Qf5 {[%emt 0:01:55]} Re8 {[%emt 0:04:07]} 24. Ba3 {[%emt 0:08:57]} a6 {[%emt 0:01:29]} 25. Nd6 {[%emt 0:00:31]} Bxd6 {[%emt 0:00:07]} 26. Bxd6 {[%emt 0:00:07]} Qd5 {[%emt 0:00:37]} 27. Bb4 {[%emt 0:05:09]} a5 {[%emt 0:02:18]} 28. Ba3 {[%emt 0:01:18]} Qe6 {[%emt 0:05:11]} 29. Qxe6+ {[%emt 0:06:32]} Rxe6 {[%emt 0:00:01]} 30. Rc8+ {[%emt 0:00:17]} Ne8 {[%emt 0:02:42]} 31. h4 {[%emt 0:04:27]} Kf7 {[%emt 0:00:16]} 32. Kf1 {[%emt 0:01:24]} Kg6 {[%emt 0:06:36]} 33. Rd8 {[%emt 0:02:40]} h5 {[%emt 0:02:22]} 34. Rd7 {[%emt 0:01:43]} Kf5 {[%emt 0:03:44]} 35. Bf8 {[%emt 0:01:29]} g5 {[%emt 0:01:18]} 36. hxg5 {[%emt 0:00:40]} Kxg5 {[%emt 0:00:02]} 37. Be7+ {[%emt 0:01:08]} Kg6 {[%emt 0:00:27]} 38. Bd8 {[%emt 0:00:31]} Nf6 {[%emt 0:02:21]} 39. Rb7 {[%emt 0:01:57]} Nd5 {[%emt 0:00:11]} 40. Ke1 {[%emt 0:00:00]} Rd6 {[%emt 0:00:00]} 41. Rb8 {[%emt 0:03:23]} e4 {[%emt 0:05:17]} 42. Bh4 {[%emt 0:05:09]} Nc3 {[%emt 0:04:29]} 43. Rd8 {[%emt 0:02:02]} Rxd8 {[%emt 0:00:39]} 44. Bxd8 {[%emt 0:00:02]} Nd5 {[%emt 0:00:06]} 45. Kd2 {[%emt 0:03:20]} Kf5 {[%emt 0:01:18]} 46. f3 {[%emt 0:03:03]} Ke5 {[%emt 0:02:24]} 47. fxe4 {[%emt 0:06:48]} Kxe4 {[%emt 0:00:03]} 48. a4 {[%emt 0:00:25]} Ke5 {[%emt 0:02:36]} 49. Kd3 {[%emt 0:05:19]} Nb4+ {[%emt 0:00:59]} 50. Kc4 {[%emt 0:00:21]} Nd5 {[%emt 0:00:01]} 51. Kd3 {[%emt 0:03:47]} Nb4+ {[%emt 0:00:07]} 52. Kd2 {[%emt 0:00:15]} Nd5 {[%emt 0:00:05]} 53. Bg5 {[%emt 0:02:05]} Kf5 {[%emt 0:01:48]} 54. Bh6 {[%emt 0:01:39]} Ke4 {[%emt 0:02:26]} 55. Bf8 {[%emt 0:00:34]} Nc3 {[%emt 0:04:19]} 56. Bg7 {[%emt 0:00:23]} Nd5 {[%emt 0:00:28]} 57. Bf8 {[%emt 0:00:32]} Nc3 {[%emt 0:02:53]} 58. Bg7 {[%emt 0:00:14]} Nd5 {[%emt 0:00:43]} 59. Bh6 {[%emt 0:00:19]} Nc3 {[%emt 0:01:32]} 60. e3 {[%emt 0:00:55]} Nd5 {[%emt 0:00:15]} 61. exd4 {[%emt 0:00:19]} Kxd4 {[%emt 0:00:23]} 62. Bg7+ {[%emt 0:00:29] Ke5} Kc5 {[%emt 0:00:28]} 1/2-1/2

[Event "Mitropa Cup Women 2019"]
[Site "Radenci"]
[Date "2019.06.01"]
[Round "6.14"]
[White "Cvitan, Ena"]
[Black "Nemcova, Karin"]
[Result "1-0"]
[ECO "E59"]
[WhiteElo "2132"]
[BlackElo "1947"]
[Annotator "ChessBase"]
[PlyCount "65"]
[EventDate "2019.05.27"]
[EventType "team-tourn"]
[EventCountry "SLO"]
[SourceTitle "playchess.com"]
[Source "ChessBase"]
[SourceQuality "1"]
[WhiteTeam "Croatia"]
[BlackTeam "Czech Republic"]
[WhiteTeamCountry "CRO"]
[BlackTeamCountry "CZE"]
[TimeControl "40/5400+30:1800+30"]

1. d4 {[%emt 0:00:13]} Nf6 {[%emt 0:00:00]} 2. c4 {[%emt 0:00:17]} e6 {[%emt 0:00:00]} 3. Nc3 {[%emt 0:00:11]} Bb4 {[%emt 0:00:01]} 4. e3 {[%emt 0:01:31]} O-O {[%emt 0:00:16]} 5. Bd3 {[%emt 0:00:40]} d5 {[%emt 0:00:36]} 6. Nf3 {[%emt 0:03:03]} dxc4 {[%emt 0:00:48]} 7. Bxc4 {[%emt 0:00:13]} c5 {[%emt 0:00:42]} 8. O-O {[%emt 0:04:59]} Nc6 {[%emt 0:02:22]} 9. a3 {[%emt 0:07:21]} Bxc3 {[%emt 0:00:24]} 10. bxc3 {[%emt 0:00:05]} Qc7 {[%emt 0:00:22]} 11. Qe2 {[%emt 0:01:44]} e5 {[%emt 0:01:33]} 12. h3 {[%emt 0:01:55]} Bf5 {[%emt 0:01:09]} 13. Bb2 {[%emt 0:04:05]} Rad8 {[%emt 0:01:48]} 14. Rfd1 {[%emt 0:12:37]} e4 {[%emt 0:02:10]} 15. Nd2 {[%emt 0:07:12]} Bg6 {[%emt 0:00:35]} 16. Nf1 {[%emt 0:04:49]} Bh5 {[%emt 0:09:40]} 17. g4 {[%emt 0:00:11]} Bg6 {[%emt 0:00:17]} 18. Ng3 {[%emt 0:01:19]} Na5 {[%emt 0:03:36]} 19. Rac1 {[%emt 0:08:34]} b5 {[%emt 0:17:10]} 20. Bxb5 {[%emt 0:05:45]} c4 {[%emt 0:00:33]} 21. a4 {[%emt 0:02:17]} Qc8 {[%emt 0:09:20]} 22. Ba3 {[%emt 0:02:18]} a6 {[%emt 0:00:41]} 23. Bb4 {[%emt 0:02:11]} axb5 {[%emt 0:05:33]} 24. Bxa5 {[%emt 0:00:10]} Rd5 {[%emt 0:00:46]} 25. Bb4 {[%emt 0:02:26]} Re8 {[%emt 0:01:47]} 26. axb5 {[%emt 0:02:59]} h5 {[%emt 0:02:29]} 27. Bc5 {[%emt 0:00:40]} hxg4 {[%emt 0:00:40]} 28. h4 {[%emt 0:00:06]} Rh5 {[%emt 0:11:24]} 29. Qxc4 {[%emt 0:04:25]} Rxh4 {[%emt 0:01:13]} 30. b6 {[%emt 0:00:42]} Nh5 {[%emt 0:03:34]} 31. Qb5 {[%emt 0:06:05]} Nxg3 {[%emt 0:09:03]} 32. fxg3 {[%emt 0:00:13]} Qb8 {[%emt 0:03:29]} 33. Bd6 {[%emt 0:00:46]} 1-0

[Event "Mitropa Cup Women 2019"]
[Site "Radenci"]
[Date "2019.06.01"]
[Round "6.15"]
[White "Koubova, Anna Marie"]
[Black "Blazeka, Mihaela"]
[Result "1/2-1/2"]
[ECO "E11"]
[WhiteElo "1975"]
[BlackElo "2118"]
[Annotator "ChessBase"]
[PlyCount "158"]
[EventDate "2019.05.27"]
[EventType "team-tourn"]
[EventCountry "SLO"]
[SourceTitle "playchess.com"]
[Source "ChessBase"]
[SourceQuality "1"]
[WhiteTeam "Czech Republic"]
[BlackTeam "Croatia"]
[WhiteTeamCountry "CZE"]
[BlackTeamCountry "CRO"]
[TimeControl "40/5400+30:1800+30"]

1. d4 {[%emt 0:00:00]} Nf6 {[%emt 0:00:58]} 2. c4 {[%emt 0:00:00]} e6 {[%emt 0:00:04]} 3. g3 {[%emt 0:00:00]} Bb4+ {[%emt 0:00:17]} 4. Bd2 {[%emt 0:00:17]} Qe7 {[%emt 0:00:15]} 5. Bg2 {[%emt 0:00:55]} Nc6 {[%emt 0:05:45]} 6. Nf3 {[%emt 0:00:15]} Bxd2+ {[%emt 0:00:55]} 7. Nbxd2 {[%emt 0:00:08]} e5 {[%emt 0:02:13]} 8. d5 {[%emt 0:01:53]} Nb8 {[%emt 0:00:54]} 9. e4 {[%emt 0:01:14]} d6 {[%emt 0:00:34]} 10. O-O {[%emt 0:00:15]} a5 {[%emt 0:00:17]} 11. Ne1 {[%emt 0:03:19]} h5 {[%emt 0:00:45]} 12. h4 {[%emt 0:18:52]} Bg4 {[%emt 0:00:29]} 13. Qa4+ {[%emt 0:06:09]} Bd7 {[%emt 0:02:51]} 14. Qb3 {[%emt 0:00:37]} b6 {[%emt 0:00:30]} 15. Nd3 {[%emt 0:16:51]} Na6 {[%emt 0:00:10]} 16. Qc3 {[%emt 0:00:46]} g6 {[%emt 0:03:47]} 17. b3 {[%emt 0:07:52]} O-O {[%emt 0:03:45]} 18. a3 {[%emt 0:04:08]} c6 {[%emt 0:09:58]} 19. b4 {[%emt 0:05:00]} axb4 {[%emt 0:04:22]} 20. axb4 {[%emt 0:00:12]} Rfc8 {[%emt 0:00:12]} 21. Qb2 {[%emt 0:08:15]} cxd5 {[%emt 0:08:42]} 22. exd5 {[%emt 0:00:16]} Bf5 {[%emt 0:00:20]} 23. Ra3 {[%emt 0:02:11]} Nc7 {[%emt 0:05:42]} 24. Rfa1 {[%emt 0:01:35]} Rxa3 {[%emt 0:00:09]} 25. Rxa3 {[%emt 0:00:34]} b5 {[%emt 0:00:52]} 26. c5 {[%emt 0:01:55]} e4 {[%emt 0:25:35]} 27. cxd6 {[%emt 0:04:28]} Qxd6 {[%emt 0:00:03]} 28. Nc5 {[%emt 0:00:18]} Qxd5 {[%emt 0:00:05]} 29. Nf1 {[%emt 0:03:16]} Ng4 {[%emt 0:01:35]} 30. Ne3 {[%emt 0:00:23]} Nxe3 {[%emt 0:00:27]} 31. Rxe3 {[%emt 0:00:10]} Qd1+ {[%emt 0:00:33]} 32. Kh2 {[%emt 0:02:24]} Nd5 {[%emt 0:00:26]} 33. Re2 {[%emt 0:00:40]} Nf6 {[%emt 0:11:18]} 34. f3 {[%emt 0:09:04]} exf3 {[%emt 0:00:05]} 35. Bxf3 {[%emt 0:00:05]} Ng4+ {[%emt 0:01:08]} 36. Bxg4 {[%emt 0:00:38]} Bxg4 {[%emt 0:01:33]} 37. Rg2 {[%emt 0:01:04]} Re8 {[%emt 0:02:12]} 38. Qd2 {[%emt 0:01:44]} Qb1 {[%emt 0:04:10]} 39. Rg1 {[%emt 0:00:54]} Qf5 {[%emt 0:00:56]} 40. Re1 {[%emt 0:00:00]} Rxe1 {[%emt 0:00:00]} 41. Qxe1 {[%emt 0:00:48]} Qc2+ {[%emt 0:03:42]} 42. Kg1 {[%emt 0:00:17]} Bh3 {[%emt 0:11:59]} 43. Qe8+ {[%emt 0:05:36]} Kg7 {[%emt 0:00:06]} 44. Qe5+ {[%emt 0:00:04]} Kh7 {[%emt 0:00:08]} 45. Qd5 {[%emt 0:00:05]} Qb1+ {[%emt 0:05:29]} 46. Kh2 {[%emt 0:00:11]} Qf5 {[%emt 0:05:06]} 47. Qa2 {[%emt 0:12:37]} Bf1 {[%emt 0:00:54]} 48. Ne4 {[%emt 0:02:29]} Bc4 {[%emt 0:03:09]} 49. Qb1 {[%emt 0:00:08]} Kg8 {[%emt 0:03:44]} 50. Qe1 {[%emt 0:01:46]} Qf1 {[%emt 0:00:28]} 51. Qe3 {[%emt 0:00:57]} Qe2+ {[%emt 0:00:14]} 52. Qxe2 {[%emt 0:00:11]} Bxe2 {[%emt 0:00:03]} 53. Kg2 {[%emt 0:01:06]} Kf8 {[%emt 0:01:11]} 54. Kf2 {[%emt 0:00:10]} Bg4 {[%emt 0:01:31]} 55. Ke3 {[%emt 0:00:21]} Ke7 {[%emt 0:00:14]} 56. Kd4 {[%emt 0:01:48]} Bd7 {[%emt 0:03:28]} 57. Kc5 {[%emt 0:00:41]} Ke6 {[%emt 0:01:18]} 58. Nd6 {[%emt 0:00:40]} f6 {[%emt 0:00:24]} 59. Nxb5 {[%emt 0:00:28]} Kf5 {[%emt 0:00:18]} 60. Nd6+ {[%emt 0:05:57]} Kg4 {[%emt 0:00:11]} 61. Ne4 {[%emt 0:00:09]} Ba4 {[%emt 0:00:22]} 62. Kd4 {[%emt 0:00:53]} f5 {[%emt 0:00:14]} 63. Nc3 {[%emt 0:00:09]} Be8 {[%emt 0:00:57]} 64. b5 {[%emt 0:03:55]} Bxb5 {[%emt 0:01:25]} 65. Nxb5 {[%emt 0:00:05]} Kxg3 {[%emt 0:00:03]} 66. Ke5 {[%emt 0:01:22]} f4 {[%emt 0:00:36]} 67. Nc3 {[%emt 0:01:14]} f3 {[%emt 0:00:10]} 68. Ne4+ {[%emt 0:00:25]} Kg4 {[%emt 0:00:49]} 69. Kf6 {[%emt 0:00:31]} Kxh4 {[%emt 0:00:16]} 70. Kxg6 {[%emt 0:00:10]} Kg4 {[%emt 0:00:21]} 71. Nf6+ {[%emt 0:00:35]} Kh3 {[%emt 0:00:28]} 72. Ne4 {[%emt 0:00:50]} Kg4 {[%emt 0:00:10]} 73. Nf6+ {[%emt 0:00:04]} Kh4 {[%emt 0:01:28]} 74. Ne4 {[%emt 0:00:16]} Kg4 {[%emt 0:00:14]} 75. Nf6+ {[%emt 0:00:04]} Kh3 {[%emt 0:00:04]} 76. Ne4 {[%emt 0:00:08]} h4 {[%emt 0:00:25]} 77. Kg5 {[%emt 0:00:24]} f2 {[%emt 0:00:35]} 78. Nxf2+ {[%emt 0:00:11]} Kg2 {[%emt 0:00:06]} 79. Kxh4 {[%emt 0:00:15]} Kxf2 {[%emt 0:00:04]} 1/2-1/2

[Event "Mitropa Cup Women 2019"]
[Site "Radenci"]
[Date "2019.06.01"]
[Round "6.16"]
[White "Spiranec, Noemi"]
[Black "Pribylova, Sofie"]
[Result "0-1"]
[ECO "D76"]
[WhiteElo "2009"]
[BlackElo "2069"]
[Annotator "NA"]
[PlyCount "66"]
[EventDate "2019.05.27"]
[EventType "team-tourn"]
[EventCountry "SLO"]
[SourceTitle "playchess.com"]
[Source "ChessBase"]
[SourceQuality "1"]
[WhiteTeam "Croatia"]
[BlackTeam "Czech Republic"]
[WhiteTeamCountry "CRO"]
[BlackTeamCountry "CZE"]
[TimeControl "40/5400+30:1800+30"]

1. d4 {[%emt 0:00:00]} Nf6 {[%emt 0:00:16]} 2. c4 {[%emt 0:00:00]} g6 {[%emt 0:00:19]} 3. g3 {[%emt 0:00:00]} Bg7 {[%emt 0:00:49]} 4. Bg2 {[%emt 0:00:00]} d5 {[%emt 0:00:07]} 5. cxd5 {[%emt 0:00:07]} Nxd5 {[%emt 0:00:03]} 6. Nf3 {[%emt 0:00:06]} O-O {[%emt 0:00:48]} 7. O-O {[%emt 0:00:09]} Nc6 {[%emt 0:00:40]} 8. e3 {[%emt 0:01:40]} Nb6 {[%emt 0:04:28]} 9. Nc3 {[%emt 0:00:44]} Re8 {[%emt 0:04:25]} 10. Nh4 {[%emt 0:00:18]} e5 {[%emt 0:02:25]} 11. d5 {[%emt 0:00:46]} Na5 {[%emt 0:04:31]} 12. e4 {[%emt 0:05:21]} c6 {[%emt 0:02:18]} 13. Be3 {[%emt 0:17:53]} cxd5 {[%emt 0:15:38]} 14. Bxb6 {[%emt 0:00:28]} axb6 {[%emt 0:04:31]} 15. Nxd5 {[%emt 0:04:18]} Nc6 {[%emt 0:07:20]} 16. Qb3 {[%emt 0:08:02]} Be6 {[%emt 0:00:50]} 17. Rfc1 {[%emt 0:05:26]} Nd4 {[%emt 0:02:38]} 18. Qd1 {[%emt 0:00:54]} Bxd5 {[%emt 0:02:15]} 19. exd5 {[%emt 0:00:02]} e4 {[%emt 0:00:23]} 20. Rc4 {[%emt 0:07:38]} Qxd5 {[%emt 0:04:38]} 21. Bf1 {[%emt 0:00:00]} Qd7 {[%emt 0:07:44]} 22. Rb4 {[%emt 0:06:27]} Red8 {[%emt 0:03:52]} 23. Be2 {[%emt 0:13:14]} Qe7 {[%emt 0:05:32]} 24. Rxb6 {[%emt 0:05:37]} Nf3+ {[%emt 0:01:08]} 25. Bxf3 {[%emt 0:00:02]} Rxd1+ {[%emt 0:00:07]} 26. Bxd1 {[%emt 0:00:04]} e3 {[%emt 0:00:31]} 27. Bf3 {[%emt 0:00:49]} exf2+ {[%emt 0:04:30]} 28. Kf1 {[%emt 0:00:07]} Re8 {[%emt 0:00:58]} 29. Ng2 {[%emt 0:00:24]} Qc5 {[%emt 0:00:50]} 30. Rxb7 {[%emt 0:01:27]} Qc4+ {[%emt 0:07:47]} 31. Kxf2 {[%emt 0:00:08]} Bd4+ {[%emt 0:00:06]} 32. Ne3 {[%emt 0:00:14]} Rxe3 {[%emt 0:00:26]} 33. Kg2 {[%emt 0:01:08]} Qc2+ {[%emt 0:00:12]} 0-1

[Event "Mitropa Cup Women 2019"]
[Site "Radenci"]
[Date "2019.06.02"]
[Round "7.2"]
[White "Nemcova, Karin"]
[Black "Afraoui, Anaelle"]
[Result "1-0"]
[ECO "B23"]
[WhiteElo "1947"]
[BlackElo "2068"]
[Annotator "NA"]
[PlyCount "77"]
[EventDate "2019.05.27"]
[EventType "team-tourn"]
[EventCountry "SLO"]
[SourceTitle "playchess.com"]
[Source "ChessBase"]
[SourceQuality "1"]
[WhiteTeam "Czech Republic"]
[BlackTeam "France"]
[WhiteTeamCountry "CZE"]
[BlackTeamCountry "FRA"]
[TimeControl "40/5400+30:1800+30"]

1. e4 {[%emt 0:00:00]} c5 {[%emt 0:00:00]} 2. Nc3 {[%emt 0:00:00]} Nc6 {[%emt 0:00:04]} 3. Bb5 {[%emt 0:00:00]} Nd4 {[%emt 0:03:12]} 4. Nf3 {[%emt 0:00:00]} a6 {[%emt 0:02:45]} 5. Bd3 {[%emt 0:00:15]} g6 {[%emt 0:03:27]} 6. Nxd4 {[%emt 0:01:21]} cxd4 {[%emt 0:00:09]} 7. Ne2 {[%emt 0:00:14]} Bg7 {[%emt 0:00:14]} 8. c3 {[%emt 0:00:37]} dxc3 {[%emt 0:04:24]} 9. dxc3 {[%emt 0:00:09]} Nf6 {[%emt 0:01:08]} 10. O-O {[%emt 0:05:47]} O-O {[%emt 0:02:09]} 11. Bg5 {[%emt 0:03:27]} h6 {[%emt 0:05:33]} 12. Bh4 {[%emt 0:00:57]} d6 {[%emt 0:04:43]} 13. h3 {[%emt 0:04:31]} Bd7 {[%emt 0:06:19]} 14. Qc2 {[%emt 0:02:50]} Rc8 {[%emt 0:03:39]} 15. Kh1 {[%emt 0:07:07]} b5 {[%emt 0:07:36]} 16. a4 {[%emt 0:01:30]} bxa4 {[%emt 0:04:36]} 17. Bxa6 {[%emt 0:02:55]} Rb8 {[%emt 0:02:21]} 18. Bd3 {[%emt 0:11:20]} Qb6 {[%emt 0:01:40]} 19. Rab1 {[%emt 0:00:46]} Qb7 {[%emt 0:04:11]} 20. f4 {[%emt 0:13:07]} Bc6 {[%emt 0:03:15]} 21. Bxf6 {[%emt 0:04:58]} Bxf6 {[%emt 0:00:50]} 22. Nd4 {[%emt 0:01:01]} Bd7 {[%emt 0:02:08]} 23. Qe2 {[%emt 0:04:37]} Bg7 {[%emt 0:05:01]} 24. f5 {[%emt 0:03:34]} Bf6 {[%emt 0:10:10]} 25. Rf3 {[%emt 0:08:38]} g5 {[%emt 0:01:29]} 26. Re3 {[%emt 0:04:36]} Be5 {[%emt 0:05:25]} 27. h4 {[%emt 0:03:48]} a3 {[%emt 0:01:34]} 28. b4 {[%emt 0:02:27]} Kg7 {[%emt 0:02:18]} 29. Bc4 {[%emt 0:03:22]} Be8 {[%emt 0:10:17]} 30. hxg5 {[%emt 0:01:25]} hxg5 {[%emt 0:02:58]} 31. Rh3 {[%emt 0:05:24]} Rh8 {[%emt 0:00:05]} 32. Rxh8 {[%emt 0:00:11]} Kxh8 {[%emt 0:00:04]} 33. Qh5+ {[%emt 0:00:11]} Kg8 {[%emt 0:00:02]} 34. Qxg5+ {[%emt 0:02:48]} Kf8 {[%emt 0:00:09]} 35. Qh6+ {[%emt 0:00:48]} Kg8 {[%emt 0:00:51]} 36. Ne6 {[%emt 0:02:10]} Bf6 {[%emt 0:02:34]} 37. Ng5 {[%emt 0:00:44]} Qxe4 {[%emt 0:00:39]} 38. Nxe4 {[%emt 0:00:12]} Bg7 {[%emt 0:00:02]} 39. Qg5 {[%emt 0:00:17]} 1-0